Cogmind - Beta 12 @@@ ROGUE MODE // 2023.07.18 @ 02:11:54 Player: PieTheDye Result: Destroyed by as-53999 with Assembled Rifle Performance ------------- Evolutions (1) 500 Regions Visited (3) 600 Robots Destroyed (35) 175 Value Destroyed (551) 551 Prototype IDs (0) 0 Alien Tech Used (0) 0 Bonus (23) 23 TOTAL SCORE: 1849 Bonus ------- High Alert Combat Kills 23 Cogmind --------- Core Integrity 0/400 Matter 191/300 Energy 99/100 System Corruption 0% Temperature Cool (0) Movement Core (50) Location -9/Mines Parts ------- > --- POWER (1) -------- (None) > --- PROPULSION (2) --- (None) > --- UTILITY (3) ------ (None) > --- WEAPON (3) ------- Assault Rifle > --- INVENTORY (5) ---- Light Treads Peak State ------------ > --- POWER ------------ Reinforced Fission Core > --- PROPULSION ------- Improved Treads Improved Treads > --- UTILITY ---------- Small Storage Unit Light Armor Plating Hardened Light Armor Plating > --- WEAPON ----------- EM Shotgun EM Shotgun Mini Grenade Launcher > --- INVENTORY -------- Light Treads Light Treads Improved Treads Wheel Compact Wheel Assault Rifle Mini Grenade Launcher Mining Laser [Rating: 21] Favorites ----------- Power Reinforced Fission Core Engine Improved Ion Engine Power Core Reinforced Fission Core Propulsion Aluminum Leg Treads Improved Treads Leg Aluminum Leg Utility Small Storage Unit Device Seismic Detector Storage Small Storage Unit Protection Light Armor Plating Weapon EM Shotgun Energy Gun EM Shotgun Ballistic Gun Assault Rifle Launcher Mini Grenade Launcher Special Weapon Mining Laser Build | -11 -10 -9 -9 ------- Run | Jun Mat Mat Min Slots Evolved 2 | . . 2 . Power . | . . . . Propulsion . | . . . . Utility 1 | . . 1 . Weapon 1 | . . 1 . Parts Attached 37 | 7 14 11 5 Power 5 | 1 4 . . Engine 4 | 1 3 . . Core 1 | . 1 . . Reactor . | . . . . Propulsion 9 | 2 . 4 3 Treads 7 | . . 4 3 Leg 2 | 2 . . . Wheel . | . . . . Hover . | . . . . Flight . | . . . . Utility 5 | 2 2 1 . Device 2 | 1 1 . . Storage 1 | 1 . . . Processor . | . . . . Hackware . | . . . . Protection 2 | . 1 1 . Artifact . | . . . . Weapon 18 | 2 8 6 2 Energy Gun 11 | 2 7 1 1 Energy Cannon . | . . . . Ballistic Gun 2 | . . 1 1 Ballistic Cannon . | . . . . Launcher 3 | . . 3 . Special Weapon 2 | . 1 1 . Impact Weapon . | . . . . Slashing Weapon . | . . . . Piercing Weapon . | . . . . Special Melee Weapon . | . . . . Unidentified Prototypes . | . . . . Parts Lost 8 | . 2 3 3 Power 2 | . 2 . . Propulsion 2 | . . . 2 Utility . | . . . . Weapon 4 | . . 3 1 Highest Loss Streak 2 | . 2 2 2 To Critical Strikes . | . . . . Average Slot Usage (%) 90 | . 97 91 30 Engine 4 | . 9 . . Core 6 | . 3 10 . Treads 10 | . . 20 15 Leg 13 | . 28 . . Device 5 | . 12 . . Storage 11 | . 14 10 . Protection 10 | . 1 19 . Energy Gun 20 | . 26 17 4 Ballistic Gun 1 | . . 1 11 Launcher 4 | . . 10 . Naked Turns 34 | . . 34 . Heaviest Build 44 | 15 35 44 5 Greatest Support 46 | 20 20 46 43 Greatest Overweight (x) 1 | 1 1 1 . Average Overweight (x) . | . . . . Largest Inventory Capacity 8 | 8 8 8 5 Average Capacity 7 | 7 8 7 5 Most Carried 8 | 8 8 8 4 Average Carried 5 | 5 6 6 1 Final Capacity 8 | 8 8 5 5 Final Carried 7 | 7 6 5 1 Class Distribution -------------------- 98% | Mutant Dominant Class ---------------- Mutant | -10/Materials Mutant | -9/Materials Mutant | -9/Mines Resources | -11 -10 -9 -9 ----------- Run | Jun Mat Mat Min Matter Collected 600 | 260 104 215 21 Remotely . | . . . . Salvage Created 707 | 140 190 377 . Parts 56 | 10 15 31 . Haulers Intercepted 1 | . 1 . . Recyclers Shooed 1 | . . 1 . Parts Field Recycled . | . . . . Retrieved Matter . | . . . . Parts Self-Destructed . | . . . . Prevented . | . . . . Kills | -11 -10 -9 -9 ------- Run | Jun Mat Mat Min Combat Hostiles Destroyed 18 | . 4 14 . Guns 5 | . 3 2 . Cannons 1 | . . 1 . AOE 12 | . 1 11 . Classes Destroyed 10 | 2 4 4 . Worker 6 | . . 6 . Builder 1 | . . 1 . Tunneler 4 | 4 . . . Hauler 1 | . 1 . . Recycler 2 | 1 . 1 . Watcher 3 | . 1 2 . Swarmer 9 | . 2 7 . Grunt 7 | . 2 5 . Duelist 1 | . . 1 . Sentry 1 | . . 1 . Best Kill Streak 11 | 2 2 11 . Combat Bots Only 5 | . 2 5 . Max Kills in Single Turn 5 | 2 2 5 . Gunslinging . | . . . . Exploded 2 | . 1 2 . Melee . | . . . . Uniques/NPCs Destroyed . | . . . . Combat | -11 -10 -9 -9 -------- Run | Jun Mat Mat Min Damage Taken 1566 | . 242 733 591 Core 442 | . 42 200 200 Absorbed by Shields . | . . . . Core Remaining (%) 91 | 100 83 . . Volleys Fired 61 | 11 24 25 1 Largest 3 | 2 2 3 2 Hottest 123 | 90 100 123 65 Shots Fired 100 | 22 35 41 2 Gun 68 | 22 22 22 2 Cannon . | . . . . Launcher 15 | . . 15 . Special 17 | . 13 4 . Kinetic 5 | . . 4 1 Thermal 28 | 11 13 4 . Explosive 15 | . . 15 . Electromagnetic 52 | 11 22 18 1 Robot Hit Streak 7 | 3 7 3 1 Robot Miss Streak 6 | 3 6 3 2 Penetration Max . | . . . . Secondary Targets . | . . . . Shots Hit Robots 45 | 12 14 18 1 Core Hits 52 | 6 9 34 3 Critical Kills . | . . . . Critical Parts Destroyed . | . . . . Critical Strikes 4 | 4 . . . Burn 3 | 3 . . . Corrupt 1 | 1 . . . Melee Attacks . | . . . . Impact . | . . . . Slashing . | . . . . Piercing . | . . . . Sneak Attacks . | . . . . Combat Hostiles . | . . . . Follow-up Attacks . | . . . . Damage Inflicted 2150 | 181 221 1726 22 Guns 566 | 152 193 212 9 Cannons . | . . . . Explosions 1523 | 29 28 1466 . Melee . | . . . . Ramming 13 | . . . 13 Kinetic 22 | . . 22 . Thermal 205 | 129 28 48 . Explosive 1466 | . . 1466 . Electromagnetic 444 | 52 193 190 9 Impact . | . . . . Slashing . | . . . . Piercing . | . . . . Highest Corruption 1 | . 1 . . Average Corruption 1 | . 1 . . Corruption Purged . | . . . . Corruption Blocked . | . . . . Effects 1 | . 1 . . Matter Fused 1 | . 1 . . Overload Shots . | . . . . Overflow Damage 51 | . . 51 . Projectiles . | . . . . Explosions 51 | . . 51 . Melee . | . . . . Knockbacks . | . . . . Impact . | . . . . Kinetic . | . . . . Secondary . | . . . . Self-Inflicted Damage 59 | . 16 37 6 Shots 2 | . 1 1 . Rammed 3 | . . . 3 Targets Rammed 3 | . . . 3 Kicked . | . . . . Crushed . | . . . . Highest Temperature 349 | 120 177 349 . Average Temperature 128 | 47 73 175 . Received Heat Transfer 344 | . 12 252 80 Effects 3 | . . 3 . Shutdowns 1 | . . 1 . Energy Bleed 1 | . . 1 . Interference 1 | . . 1 . Siege Activations . | . . . . Robots Corrupted . | . . . . Combat Hostiles . | . . . . Parts Fried 1 | . 1 . . Impact Corruptions . | . . . . Robots Melted . | . . . . Combat Hostiles . | . . . . Parts Melted 1 | 1 . . . Heat Transferred 718 | 568 50 100 . Parts Sabotaged . | . . . . Parts Stolen . | . . . . Parts Stripped . | . . . . Power Chain Reactions 3 | 1 2 . . Missiles Intercepted . | . . . . Alert | -11 -10 -9 -9 ------- Run | Jun Mat Mat Min Peak Influence 510 | 25 131 510 196 Initial 196 | . 16 25 196 Average 92 | 10 65 125 185 Maximum Alert Level 2 | . . 2 . Low Security (%) 90 | 100 100 77 100 Level 1 2 | . . 6 . Level 2 6 | . . 15 . Level 3 . | . . . . Level 4 . | . . . . Level 5 . | . . . . High Security . | . . . . Max Security . | . . . . Squads Dispatched 4 | . 1 3 . Investigation 1 | . . 1 . Extermination . | . . . . Reinforcement 3 | . 1 2 . Assault . | . . . . Garrison . | . . . . Intercept . | . . . . Searches Triggered . | . . . . Construction Impeded . | . . . . Haulers Reinforced . | . . . . Active Scanning Responses . | . . . . Cargo Convoy Interrupts . | . . . . Stealth | -11 -10 -9 -9 --------- Run | Jun Mat Mat Min Distress Signals 4 | . 1 3 . Communications Jammed . | . . . . Distress Signals . | . . . . Times Spotted 49 | . 8 27 14 Peak Tracking Total 13 | . 3 7 13 Tactical Retreats 1 | . . . 1 Traps | -11 -10 -9 -9 ------- Run | Jun Mat Mat Min Traps Triggered 4 | . 4 . . Indirectly . | . . . . Trap Hack Attempts . | . . . . Triggered . | . . . . Disarmed . | . . . . Reprogrammed . | . . . . Reused . | . . . . Traps Extracted . | . . . . Installed . | . . . . Triggered . | . . . . Machines | -11 -10 -9 -9 ---------- Run | Jun Mat Mat Min Machines Disabled 3 | . 1 2 . Max in Single Turn 2 | . 1 2 . Machines Repaired . | . . . . Machines Sabotaged . | . . . . Overloaded Fab Kills . | . . . . Hacking | -11 -10 -9 -9 --------- Run | Jun Mat Mat Min Machines Accessed 9 | . 2 7 . Terminals 7 | . 2 5 . Fabricators . | . . . . Repair Stations 1 | . . 1 . Recycling Units . | . . . . Scanalyzers 1 | . . 1 . Garrison Access . | . . . . Total Hacks 22 | . 7 15 . Successful 14 | . 3 11 . Failed 8 | . 4 4 . Catastrophic . | . . . . Database Lockouts . | . . . . Manual . | . . . . Terminals 19 | . 7 12 . Fabricators . | . . . . Repair Stations 1 | . . 1 . Recycling Units . | . . . . Scanalyzers 2 | . . 2 . Garrison Access . | . . . . Terminal Hacks 11 | . 3 8 . Alert Level 2 | . . 2 . Unreport Threat 1 | . . 1 . Locate Traps 2 | . 1 1 . Dispatch Records 2 | . 1 1 . Reinforcement Status 1 | . . 1 . Recall Investigation 1 | . . 1 . Hauler Manifests 1 | . . 1 . Zone Layout 1 | . 1 . . Fabricator Hacks . | . . . . Repair Station Hacks 1 | . . 1 . Scan Component 1 | . . 1 . Recycling Unit Hacks . | . . . . Scanalyzer 2 | . . 2 . Insert Component 1 | . . 1 . Analyze 1 | . . 1 . Garrison Access Hacks . | . . . . Unauthorized Hacks . | . . . . Terminals . | . . . . Fabricators . | . . . . Repair Stations . | . . . . Recycling Units . | . . . . Scanalyzers . | . . . . Garrison Access . | . . . . Data Cores Recovered . | . . . . Used . | . . . . Hacking Detections 7 | . 2 5 . Full Trace Events 1 | . . 1 . Feedback Events . | . . . . Feedback Blocked . | . . . . Robot Schematics Acquired . | . . . . Robots Built . | . . . . Authchips . | . . . . Time . | . . . . Total Robot Build Rating . | . . . . Part Schematics Acquired 1 | . . 1 . Parts Built . | . . . . Authchips . | . . . . Time . | . . . . Total Part Build Rating . | . . . . Parts Repaired . | . . . . Time . | . . . . Parts Recycled . | . . . . Recycled Matter . | . . . . Retrieved Matter . | . . . . Retrieved Components . | . . . . Parts Scanalyzed 1 | . . 1 . Part Schematics Acquired 1 | . . 1 . Parts Damaged . | . . . . Bothacking | -11 -10 -9 -9 ------------ Run | Jun Mat Mat Min Used RIF Installer . | . . . . Robots Hacked . | . . . . Non-combat . | . . . . Combat . | . . . . Robot Hacks Applied . | . . . . Relay Couplers Released . | . . . . Fabnet Peak Effective % . | . . . . Robots Rewired . | . . . . Allies Hacked . | . . . . Hacks Repelled . | . . . . Allies | -11 -10 -9 -9 -------- Run | Jun Mat Mat Min Total Allies . | . . . . Largest Group . | . . . . Highest-Rated Group . | . . . . Highest-Rated Ally . | . . . . Total Orders . | . . . . Ally Attacks . | . . . . Total Damage . | . . . . Kills . | . . . . Allies Corrupted . | . . . . Allies Melted . | . . . . Intel | -11 -10 -9 -9 ------- Run | Jun Mat Mat Min Robot Analysis Total . | . . . . Derelict Logs Recovered . | . . . . Drone Launches . | . . . . Drone Recoveries . | . . . . Exploration | -11 -10 -9 -9 ------------- Run | Jun Mat Mat Min Turns Passed 1651 | 151 705 695 100 Spaces Moved 946 | 91 395 361 99 Core 150 | 20 . 66 64 Treads 330 | . . 295 35 Legs 466 | 71 395 . . Wheels . | . . . . Hover . | . . . . Flight . | . . . . Fastest Speed 50 | 50 120 50 50 Average Speed 130 | 107 133 143 88 Slowest Speed 240 | 190 190 240 160 Overloaded Moves . | . . . . Propulsion Burnouts . | . . . . Robots Hopped . | . . . . Cave-ins Triggered . | . . . . Exploration Rate (%) 35 | 4 64 45 28 Regions Visited 3 Branch Regions 1 Pre-discovered Areas . | . . . . Known Exits Taken . | . . . . Unknown Exits Taken 3 | 1 1 1 . Scrap Searched . | . . . . Spaces Dug 8 | . 8 . . Terrain Destroyed 113 | 7 12 94 . Melee . | . . . . Projectile 9 | . 8 1 . AOE 104 | 7 4 93 . Terrain Rammed . | . . . . Walls Destroyed . | . . . . Machines Disabled . | . . . . Actions | -11 -10 -9 -9 --------- Run | Jun Mat Mat Min Total 1237 | 122 517 490 108 Wait 149 | . 65 84 . Move 943 | 90 394 360 99 Hop . | . . . . Pick Up 30 | 14 12 4 . Fast Attach 2 | . . 2 . Attach 28 | 7 12 5 4 Detach . | . . . . Swap 7 | . 2 4 1 Drop 14 | . 8 6 . Fire 61 | 11 24 25 1 Melee . | . . . . Ram 3 | . . . 3 Kick . | . . . . Crush . | . . . . Escape Stasis . | . . . . Rewire . | . . . . Trap . | . . . . Miscellaneous . | . . . . Route ------- -11/Junkyard -10/Materials (discovered 2 exits: *Mat x2) -9/Materials (discovered 2 exits: [*Mat] / [*Min]) -9/Mines History --------- Turn | Location | Event 9 | -11/Junkyard | Discovered new exit (range 15) 152 | -11/Junkyard | Entered Materials 301 | -10/Materials | Build established: Mutant 616 | -10/Materials | Discovered new exit (range 15) 829 | -10/Materials | Discovered new exit (range 15) 857 | -10/Materials | Entered another Materials area 857 | -9/Materials | Evolved 2 slots: Utility x1, Weapon x1 1518 | -9/Materials | Released all parts (7) 1534 | -9/Materials | Discovered new exit (range 7) 1546 | -9/Materials | Discovered new exit (range 13) 1552 | -9/Materials | Entered Mines 1581 | -9/Mines | Assembled infested the area 1589 | -9/Mines | Core integrity fell below 50% 1600 | -9/Mines | Met a Derelict bent on vengeance 1629 | -9/Mines | Core integrity fell below 20% 1652 | -9/Mines | Destroyed by as-53999 with Assembled Rifle Last Messages --------------- Found 6 traps in 1 array: 6x Shock Trap Map updated. 01534_ ALERT: Suspicious activity at Terminal M004. Dispatching Investigation squad. 01534_ EXIT=FOUND LOCATION=UNKNOWN GOAL=ESCAPE 01581_ ALERT: Infestation in the mines, dispatching Demolisher response squad. 01594_ EM Shotgun destroyed. 01609_ T-07 Excavator system corrupted by crushing effect. 01609_ T-07 Excavator destroyed. 01626_ Slammed into as-74416. 01627_ Slammed into as-53999. 01627_ Lgt. Treads destroyed. 01628_ Slammed into as-99318. 01629_ Imp. Treads destroyed. 01631_ as-44343 destroyed. 01632_ Acquired 21 matter. Map ----- +----------------------------------------------------+ | | | | | | | | | | | | | | | | | | | | | | | | | | | | | | | | | | | | | | | ?????????????????????????????????????????????????? | | ?????????????????????????????????????????????????? | | ?????????????????????????????????????????????###?? | | ???????????????????????????????????####????## ##? | | ??????????????????????###?????###?## ###### ## | | ?????????? ### ##""## ### # | | ??????????# @ Xa a # | | ???????????# a a | | ???????????# ######## ## | | ???????????# ##### ##??????# #### | | ???????????# ?????## ###???????# #??# ## | | ????????????# ????????####?????##### #??# #?? | | ????????????# ??????????????????# ##?# #?? | | ???????????? ????????????????????# ### #?? | | ???????????????????????????????????# ## #?? | | ???????????????????????????????????### ## #?? | | ?????????????????????????????????????# ### #?? | | ?????????????????????????????????????## #?# #?# | | ??????????????????????????????????????## #?# ## | | ???????????????????????????????????????# #?# | | ???????????????????????????????????????# #?# | | ???????????????????????????????????????# ### | | ???????????????????????????????????????# | | ???????????????????????????????????????### ## | | ?????????????????????????????????????????# ## | | ?????????????????????????????????????????# ## # | | ??????????????????????????????????######## ! | | ??????????????????????????????????# % """" | | ??????????????????????????????????# """" # | | ????????????????????????????????### ####### """" # | | ????????????????????????????????# ##?# = # | +----------------------------------------------------+ Best States ------------- Heat Dissipation 28 Energy Generation 19 Energy Capacity 310 Matter Stores 300 Matter Capacity 300 Sight Range 16 Terrain Scan Density 10 Armor Coverage 300 Evasion (%) 55 Recoil Reduction 2 Item Schematics ----------------- Mining Laser | -9/Materials | Scanalyzed Robot Schematics ------------------ None Fabricated ------------ Nothing Alien Tech Used ----------------- None Achievements -------------- None Challenges ------------ None Game ------ Seed DeuteriumHelicalRail Manual? 0 Play Time 00:28:34 Cumulative 20.7 hours Start 2023.07.18 @ 01:42:40 End 2023.07.18 @ 02:11:54 Sessions 1 Manual Loads 0 Difficulty Rogue Special Mode None Game No. 28 Rogue 28 Adventurer 0 Explorer 0 Win Type - Total 0 Types 0/0/0/0/0/0/0/0/0 Lore% 21 Gallery% 23 Achievement% 21 Wizard Run 0 Options --------- ASCII 0 Keyboard 0 Movement Numpad Keybinds 0 Fullscreen 1 Font 18/SmallcapsGlow Map View 76x50 Tactical HUD 1 Map Filters NONE Filters NONE Steam 1 RUN: 9c2bc58f-05a7-4b6a-9dc7-1fa63fbd47e6